Cogmind - Beta 11 @@@ ROGUE MODE // 2022.04.07 @ 13:33:09 Player: Jezoensis Result: Destroyed by B-75 Beast with Heavy Machine Gun Performance ------------- Evolutions (2) 1000 Regions Visited (8) 1600 Robots Destroyed (81) 405 Value Destroyed (1925) 1925 Prototype IDs (5) 100 Alien Tech Used (0) 0 Bonus (353) 353 TOTAL SCORE: 5383 Bonus ------- High Alert Combat Kills 166 Entered Garrisons 200 Friendly Fire -13 Cogmind --------- Core Integrity 0/550 Matter 300/300 Energy 53/100 System Corruption 2% Temperature Cool (9) Movement Core (100) Ox1 Location -8/Garrison Parts ------- > --- POWER (1) -------- (None) > --- PROPULSION (3) --- (None) > --- UTILITY (5) ------ Small Storage Unit Structural Scanner Machine Analyzer Improved Terrain Scan Processor > --- WEAPON (2) ------- (None) > --- INVENTORY (8) ---- Light Nuclear Core Medium Storage Unit High-capacity Matter Pod (128) Improved Sensor Array Improved Signal Interpreter Improved Terrain Scanner Enhanced Autogun Mining Laser Peak State ------------ > --- POWER ------------ Heavy Ion Engine > --- PROPULSION ------- Light Treads Light Treads Light Treads > --- UTILITY ---------- Advanced Heat Sink Large Storage Unit Improved Terrain Scanner Improved Terrain Scan Processor Hardened Medium Armor Plating > --- WEAPON ----------- Enhanced Autogun Enhanced Autogun > --- INVENTORY -------- Heavy Ion Engine Light Treads Light Treads Light Treads Small Storage Unit Medium Storage Unit High-capacity Matter Pod Structural Scanner Machine Analyzer Improved Signal Interpreter Advanced Beam Cannon Autogun EMP Blaster Grenade Launcher Mining Laser [Rating: 31] Favorites ----------- Power Heavy Ion Engine Engine Heavy Ion Engine Power Core Light Nuclear Core Propulsion Light Treads Treads Light Treads Utility Large Storage Unit Device Improved Terrain Scanner Storage Large Storage Unit Processor Improved Terrain Scan Processor Protection Hardened Medium Armor Plating Weapon Advanced Beam Cannon Energy Gun Medium Laser Energy Cannon Advanced Beam Cannon Ballistic Gun Enhanced Autogun Launcher EMP Blaster Special Weapon Mining Laser Build | -11 -10 -10 -9 -9 -9 -8 -8 -8 ------- Run | Scr Mat Min Mat Min Exi Min Mat Gar Slots Evolved 4 | . . . 2 . . . 2 . Power . | . . . . . . . . . Propulsion 1 | . . . 1 . . . . . Utility 3 | . . . 1 . . . 2 . Weapon . | . . . . . . . . . Parts Attached 123 | 7 7 10 30 3 . 6 42 18 Power 8 | 1 2 1 1 . . . 2 1 Engine 7 | 1 2 1 1 . . . 2 . Core 1 | . . . . . . . . 1 Reactor . | . . . . . . . . . Propulsion 17 | 2 . 1 6 . . . 4 4 Treads 17 | 2 . 1 6 . . . 4 4 Leg . | . . . . . . . . . Wheel . | . . . . . . . . . Hover . | . . . . . . . . . Flight . | . . . . . . . . . Utility 53 | 2 3 3 11 1 . 4 21 8 Device 36 | 1 1 2 6 1 . 3 18 4 Storage 9 | 1 2 1 2 . . . . 3 Processor 2 | . . . 1 . . . . 1 Hackware . | . . . . . . . . . Protection 6 | . . . 2 . . 1 3 . Artifact . | . . . . . . . . . Weapon 45 | 2 2 5 12 2 . 2 15 5 Energy Gun 5 | 1 1 1 2 . . . . . Energy Cannon 10 | . . . 2 1 . 1 5 1 Ballistic Gun 13 | 1 . 1 6 . . . 3 2 Ballistic Cannon . | . . . . . . . . . Launcher 9 | . . 3 . 1 . 1 2 2 Special Weapon 8 | . 1 . 2 . . . 5 . Impact Weapon . | . . . . . . . . . Slashing Weapon . | . . . . . . . . . Piercing Weapon . | . . . . . . . . . Special Melee Weapon . | . . . . . . . . . Unidentified Prototypes 3 | . 1 . 1 . . . 1 . Parts Lost 19 | . . 5 3 . . . . 11 Power 2 | . . 1 . . . . . 1 Propulsion 9 | . . 2 2 . . . . 5 Utility 3 | . . . . . . . . 3 Weapon 5 | . . 2 1 . . . . 2 Highest Loss Streak 9 | . . 5 2 . . . . 9 To Critical Strikes . | . . . . . . . . . Average Slot Usage (%) 96 | . 98 80 96 100 100 100 100 88 Engine 10 | . 14 14 11 11 11 11 9 8 Treads 28 | . 28 20 31 33 33 33 27 21 Device 13 | . 12 10 12 11 11 10 18 15 Storage 11 | . 14 14 11 11 11 11 9 15 Processor 7 | . . . 7 11 11 11 9 9 Protection 2 | . . . 1 . . . 9 2 Energy Gun 2 | . 10 9 3 . . . . . Energy Cannon 8 | . . . 3 20 22 21 11 1 Ballistic Gun 7 | . 14 7 12 . . . 5 13 Special Weapon 1 | . 3 . 2 . . . 1 . Naked Turns . | . . . . . . . . . Heaviest Build 47 | 13 33 33 42 37 37 37 46 47 Greatest Support 66 | 40 40 40 66 63 63 63 63 60 Greatest Overweight (x) 4 | . . 1 1 . . . . 4 Average Overweight (x) . | . . . . . . . . . Largest Inventory Capacity 15 | 8 15 15 15 15 15 15 15 15 Average Capacity 14 | 7 9 13 14 15 15 15 15 14 Most Carried 15 | 5 11 12 15 15 15 15 15 15 Average Carried 12 | 2 7 10 12 15 15 15 14 14 Final Capacity 15 | 8 15 10 15 15 15 15 15 8 Final Carried 15 | 3 11 9 15 15 15 15 15 8 Class Distribution -------------------- 73% | Mutant 15% | Scavenger-Mutant 8% | Skirmisher 3% | Scavenger-Skirmisher Dominant Class ---------------- Mutant | -10/Materials Mutant | -10/Mines Mutant | -9/Materials Mutant | -9/Mines Mutant | -9/Exiles Mutant | -8/Mines Scavenger-Mutant | -8/Materials Scavenger-Mutant | -8/Garrison Resources | -11 -10 -10 -9 -9 -9 -8 -8 -8 ----------- Run | Scr Mat Min Mat Min Exi Min Mat Gar Matter Collected 2250 | 241 116 36 544 9 . 191 779 334 Remotely . | . . . . . . . . . Salvage Created 2813 | 18 167 86 585 16 . 183 1425 333 Parts 168 | 3 7 10 36 3 . 13 82 14 Haulers Intercepted 6 | . 1 . 2 . . . 3 . Recyclers Shooed 6 | . 2 2 . . . . 2 . Parts Field Recycled . | . . . . . . . . . Retrieved Matter . | . . . . . . . . . Parts Self-Destructed . | . . . . . . . . . Prevented . | . . . . . . . . . Kills | -11 -10 -10 -9 -9 -9 -8 -8 -8 ------- Run | Scr Mat Min Mat Min Exi Min Mat Gar Combat Hostiles Destroyed 57 | . 2 11 9 3 . 6 19 7 Guns 19 | . 2 4 7 . . . 2 4 Cannons 13 | . . . 1 . . 3 9 . AOE 24 | . . 7 . 3 . 3 8 3 Classes Destroyed 13 | 1 2 3 4 1 . . 1 1 Worker 5 | . . . . 1 . 1 3 . Builder 6 | . . 2 . . . . 4 . Tunneler 2 | 1 . . . . . 1 . . Hauler 6 | . 1 . 2 . . . 3 . Recycler 7 | . . . 1 . . . 6 . Mechanic 2 | . . . 1 . . . 1 . Watcher 4 | . . . 3 . . . 1 . Swarmer 16 | . . 3 3 3 . 3 4 . Grunt 22 | . 2 . 3 . . 3 8 6 Brawler 2 | . . . . . . . 2 . Sentry 8 | . . . 3 . . . 5 . Demolisher 1 | . . . . . . . . 1 Assembled 8 | . . 8 . . . . . . Best Kill Streak 10 | 1 2 10 5 6 . 4 9 5 Combat Bots Only 8 | . 2 8 5 4 . 3 7 5 Max Kills in Single Turn 4 | 1 1 2 2 2 . 2 4 2 Gunslinging 1 | . . 1 . . . . . . Exploded 3 | . . 2 . 2 . 2 3 2 Melee . | . . . . . . . . . Uniques/NPCs Destroyed . | . . . . . . . . . Combat | -11 -10 -10 -9 -9 -9 -8 -8 -8 -------- Run | Scr Mat Min Mat Min Exi Min Mat Gar Damage Taken 4300 | . 103 759 628 53 . 236 610 1911 Core 765 | . 16 71 104 . . 19 58 497 Absorbed by Shields . | . . . . . . . . . Regen/Repaired (Parts) 65 | . . . 65 . . . . . Core Remaining (%) 78 | 100 . 65 . . . 69 . . Volleys Fired 189 | 2 17 18 46 2 . 12 65 27 Largest 2 | 2 2 2 2 1 . 2 2 2 Hottest 136 | 70 100 115 136 30 . 136 136 68 Shots Fired 341 | 4 33 27 87 2 . 20 120 48 Gun 194 | 4 32 13 73 . . . 32 40 Cannon 100 | . . . 9 . . 15 74 2 Launcher 32 | . . 14 . 2 . 5 5 6 Special 15 | . 1 . 5 . . . 9 . Kinetic 152 | 2 16 4 58 . . . 32 40 Thermal 157 | 2 17 9 29 . . 15 83 2 Explosive 17 | . . 6 . 2 . 5 4 . Electromagnetic 15 | . . 8 . . . . 1 6 Robot Hit Streak 14 | 3 11 5 14 5 . 7 8 8 Robot Miss Streak 6 | 1 1 5 2 . . 3 6 3 Penetration Max . | . . . . . . . . . Secondary Targets 2 | . . 1 1 . . . . . Max Gunslinging Chain 1 | . . 1 1 . . . . . Shots Hit Robots 215 | 3 27 15 58 2 . 11 66 33 Core Hits 134 | 1 7 29 20 4 . 13 46 14 Critical Kills 1 | . . . 1 . . . . . Critical Parts Destroyed 1 | . . . . . . . 1 . Critical Strikes 7 | . 1 . 5 . . . 1 . Burn 5 | . 1 . 4 . . . . . Destroy 2 | . . . 1 . . . 1 . Melee Attacks . | . . . . . . . . . Impact . | . . . . . . . . . Slashing . | . . . . . . . . . Piercing . | . . . . . . . . . Sneak Attacks . | . . . . . . . . . Combat Hostiles . | . . . . . . . . . Follow-up Attacks . | . . . . . . . . . Damage Inflicted 5546 | 38 355 725 859 163 . 468 2041 897 Guns 2013 | 38 345 103 725 . . . 300 502 Cannons 1304 | . . . 127 . . 204 973 . Explosions 2149 | . . 621 . 156 . 241 740 391 Melee . | . . . . . . . . . Ramming 80 | . 10 1 7 7 . 23 28 4 Kinetic 1602 | 26 172 50 552 . . . 300 502 Thermal 2061 | 12 173 53 300 31 . 204 1235 53 Explosive 1252 | . . 430 . 125 . 241 456 . Electromagnetic 551 | . . 191 . . . . 22 338 Impact . | . . . . . . . . . Slashing . | . . . . . . . . . Piercing . | . . . . . . . . . Highest Corruption 2 | . . . . . . . 2 2 Average Corruption 2 | . . . . . . . 2 2 Corruption Purged . | . . . . . . . . . Corruption Blocked . | . . . . . . . . . Effects 14 | . . . . . . . 11 3 Message Errors 2 | . . . . . . . 1 1 Matter Fused 5 | . . . . . . . 4 1 Heat Flow Errors 1 | . . . . . . . 1 . Energy Discharges 2 | . . . . . . . 2 . Data Loss (minor) 2 | . . . . . . . 2 . Alerts 2 | . . . . . . . 1 1 Overload Shots . | . . . . . . . . . Overflow Damage 37 | . . 11 . 11 . 7 8 . Projectiles . | . . . . . . . . . Explosions 37 | . . 11 . 11 . 7 8 . Melee . | . . . . . . . . . Knockbacks 1 | . . . . . . 1 . . Impact 1 | . . . . . . 1 . . Kinetic . | . . . . . . . . . Secondary . | . . . . . . . . . Self-Inflicted Damage 200 | . . 67 . 47 . 63 . 23 Shots 14 | . . 5 . 2 . 2 . 5 Rammed 26 | . 4 2 4 2 . 7 6 1 Targets Rammed 32 | . 4 3 4 3 . 8 9 1 Kicked . | . . . . . . . . . Crushed 6 | . . 1 . 1 . 1 3 . Highest Temperature 180 | 9 102 122 135 . . 180 165 56 Average Temperature 42 | 6 39 42 21 . . 77 50 23 Received Heat Transfer 1140 | . 57 . 189 . . 63 351 480 Siege Activations . | . . . . . . . . . Robots Corrupted . | . . . . . . . . . Combat Hostiles . | . . . . . . . . . Parts Fried . | . . . . . . . . . Impact Corruptions . | . . . . . . . . . Robots Melted 1 | . . . 1 . . . . . Combat Hostiles 1 | . . . 1 . . . . . Parts Melted 7 | . 2 . 2 . . . 3 . Heat Transferred 4248 | 37 592 148 962 50 . 370 2039 50 Parts Sabotaged . | . . . . . . . . . Parts Stolen . | . . . . . . . . . Parts Stripped . | . . . . . . . . . Power Chain Reactions 3 | . . . . . . . 2 1 Missiles Intercepted . | . . . . . . . . . Alert | -11 -10 -10 -9 -9 -9 -8 -8 -8 ------- Run | Scr Mat Min Mat Min Exi Min Mat Gar Peak Influence 682 | 5 100 70 184 261 . 175 599 682 Initial 339 | . 3 . 11 21 . . 68 339 Average 198 | 3 71 20 73 251 . 115 361 548 Maximum Alert Level 2 | . . . . 1 . . 2 2 Low Security (%) 68 | 100 100 100 100 2 . 100 25 . Level 1 11 | . . . . 97 . . 26 25 Level 2 19 | . . . . . . . 48 74 Level 3 . | . . . . . . . . . Level 4 . | . . . . . . . . . Level 5 . | . . . . . . . . . High Security . | . . . . . . . . . Max Security . | . . . . . . . . . Squads Dispatched 3 | . . . 2 . . . 1 . Investigation 1 | . . . . . . . 1 . Extermination . | . . . . . . . . . Reinforcement 2 | . . . 2 . . . . . Assault . | . . . . . . . . . Garrison . | . . . . . . . . . Intercept . | . . . . . . . . . Searches Triggered . | . . . . . . . . . Construction Impeded . | . . . . . . . . . Haulers Reinforced . | . . . . . . . . . Active Scanning Responses . | . . . . . . . . . Cargo Convoy Interrupts . | . . . . . . . . . Stealth | -11 -10 -10 -9 -9 -9 -8 -8 -8 --------- Run | Scr Mat Min Mat Min Exi Min Mat Gar Distress Signals 3 | . . . 2 . . . 1 . Communications Jammed . | . . . . . . . . . Distress Signals . | . . . . . . . . . Times Spotted 96 | . 4 16 20 3 . 6 27 20 Peak Tracking Total 7 | . 2 7 4 3 . 3 7 7 Tactical Retreats 6 | . . 3 . . . . . 3 Traps | -11 -10 -10 -9 -9 -9 -8 -8 -8 ------- Run | Scr Mat Min Mat Min Exi Min Mat Gar Traps Triggered 1 | . . . . . . . 1 . Indirectly . | . . . . . . . . . Trap Hack Attempts . | . . . . . . . . . Triggered . | . . . . . . . . . Disarmed . | . . . . . . . . . Reprogrammed . | . . . . . . . . . Reused . | . . . . . . . . . Traps Extracted . | . . . . . . . . . Installed . | . . . . . . . . . Triggered . | . . . . . . . . . Machines | -11 -10 -10 -9 -9 -9 -8 -8 -8 ---------- Run | Scr Mat Min Mat Min Exi Min Mat Gar Machines Disabled 9 | . . . . 6 . . 3 . Max in Single Turn 6 | . . . . 6 . . 1 . Machines Sabotaged . | . . . . . . . . . Garrisons Compromised . | . . . . . . . . . Overloaded Fab Kills . | . . . . . . . . . Hacking | -11 -10 -10 -9 -9 -9 -8 -8 -8 --------- Run | Scr Mat Min Mat Min Exi Min Mat Gar Machines Accessed 16 | . 4 1 5 . . . 6 . Terminals 13 | . 3 1 4 . . . 5 . Fabricators . | . . . . . . . . . Repair Stations 1 | . . . 1 . . . . . Recycling Units 1 | . 1 . . . . . . . Scanalyzers . | . . . . . . . . . Garrison Access 1 | . . . . . . . 1 . Total Hacks 52 | . 14 6 13 . . . 19 . Successful 23 | . 8 1 8 . . . 6 . Failed 28 | . 6 5 4 . . . 13 . Catastrophic . | . . . . . . . . . Database Lockouts 1 | . . . 1 . . . . . Manual 44 | . 14 6 9 . . . 15 . Terminals 48 | . 13 6 11 . . . 18 . Fabricators . | . . . . . . . . . Repair Stations 2 | . . . 2 . . . . . Recycling Units 1 | . 1 . . . . . . . Scanalyzers . | . . . . . . . . . Garrison Access 1 | . . . . . . . 1 . Terminal Hacks 10 | . 3 1 4 . . . 2 . Robot Analysis 3 | . 1 1 1 . . . . . Prototype ID Bank 1 | . . . 1 . . . . . Terminal Index 2 | . 1 . . . . . 1 . Unreport Threat 1 | . . . 1 . . . . . Locate Traps 3 | . 1 . 1 . . . 1 . Fabricator Hacks . | . . . . . . . . . Repair Station Hacks 2 | . . . 2 . . . . . Scan Component 1 | . . . 1 . . . . . Repair 1 | . . . 1 . . . . . Recycling Unit Hacks . | . . . . . . . . . Scanalyzer . | . . . . . . . . . Garrison Access Hacks 1 | . . . . . . . 1 . Unlock Access 1 | . . . . . . . 1 . Unauthorized Hacks 10 | . 5 . 2 . . . 3 . Terminals 9 | . 4 . 2 . . . 3 . Track 1 | . 1 . . . . . . . Botnet 6 | . 2 . 2 . . . 2 . Operators 2 | . 1 . . . . . 1 . Fabricators . | . . . . . . . . . Repair Stations . | . . . . . . . . . Recycling Units 1 | . 1 . . . . . . . Recyclers 1 | . 1 . . . . . . . Scanalyzers . | . . . . . . . . . Garrison Access . | . . . . . . . . . Data Cores Recovered . | . . . . . . . . . Used . | . . . . . . . . . Hacking Detections 14 | . 3 1 5 . . . 5 . Full Trace Events 2 | . . . . . . . 2 . Feedback Events . | . . . . . . . . . Feedback Blocked . | . . . . . . . . . Robot Schematics Acquired . | . . . . . . . . . Robots Built . | . . . . . . . . . Authchips . | . . . . . . . . . Time . | . . . . . . . . . Total Robot Build Rating . | . . . . . . . . . Part Schematics Acquired . | . . . . . . . . . Parts Built . | . . . . . . . . . Authchips . | . . . . . . . . . Time . | . . . . . . . . . Total Part Build Rating . | . . . . . . . . . Parts Repaired 1 | . . . 1 . . . . . Time 32 | . . . 32 . . . . . Parts Recycled . | . . . . . . . . . Recycled Matter . | . . . . . . . . . Retrieved Matter . | . . . . . . . . . Retrieved Components . | . . . . . . . . . Parts Scanalyzed . | . . . . . . . . . Part Schematics Acquired . | . . . . . . . . . Parts Damaged . | . . . . . . . . . Bothacking | -11 -10 -10 -9 -9 -9 -8 -8 -8 ------------ Run | Scr Mat Min Mat Min Exi Min Mat Gar Used RIF Installer . | . . . . . . . . . Robots Hacked . | . . . . . . . . . Non-combat . | . . . . . . . . . Combat . | . . . . . . . . . Robot Hacks Applied . | . . . . . . . . . Relay Couplers Released . | . . . . . . . . . Fabnet Peak Effective % . | . . . . . . . . . Robots Rewired . | . . . . . . . . . Allies Hacked . | . . . . . . . . . Hacks Repelled . | . . . . . . . . . Allies | -11 -10 -10 -9 -9 -9 -8 -8 -8 -------- Run | Scr Mat Min Mat Min Exi Min Mat Gar Total Allies 3 | . . 3 . . . . . . Largest Group 3 | . . 3 . . . . . . Highest-Rated Group 40 | . . 40 . . . . . . Highest-Rated Ally 16 | . . 16 . . . . . . Total Orders . | . . . . . . . . . Ally Attacks 7 | . . 7 . . . . . . Total Damage 81 | . . 81 . . . . . . Kills . | . . . . . . . . . Allies Corrupted . | . . . . . . . . . Allies Melted . | . . . . . . . . . Intel | -11 -10 -10 -9 -9 -9 -8 -8 -8 ------- Run | Scr Mat Min Mat Min Exi Min Mat Gar Robot Analysis Total 3 | . 1 1 1 . . . . . Derelict Logs Recovered . | . . . . . . . . . Drone Launches . | . . . . . . . . . Drone Recoveries . | . . . . . . . . . Exploration | -11 -10 -10 -9 -9 -9 -8 -8 -8 ------------- Run | Scr Mat Min Mat Min Exi Min Mat Gar Turns Passed 3625 | 69 405 199 972 70 317 382 934 277 Spaces Moved 1762 | 43 201 84 474 36 199 203 409 113 Core 30 | 18 . . . . . . . 12 Treads 1732 | 25 201 84 474 36 199 203 409 101 Legs . | . . . . . . . . . Wheels . | . . . . . . . . . Hover . | . . . . . . . . . Flight . | . . . . . . . . . Fastest Speed 50 | 50 160 160 160 160 160 160 160 100 Average Speed 159 | 113 160 161 160 160 160 160 160 158 Slowest Speed 250 | 160 160 240 240 160 160 160 160 250 Overloaded Moves . | . . . . . . . . . Propulsion Burnouts . | . . . . . . . . . Robots Hopped . | . . . . . . . . . Cave-ins Triggered . | . . . . . . . . . Exploration Rate (%) 34 | 4 36 23 55 14 63 38 40 34 Regions Visited 8 Branch Regions 4 Pre-discovered Areas . | . . . . . . . . . Known Exits Taken 1 | . . . . . . . 1 . Unknown Exits Taken 7 | 1 1 1 1 1 1 1 . . Scrap Searched 1 | . . . . . . 1 . . Spaces Dug 15 | . 1 . 5 . . . 9 . Terrain Destroyed 162 | . 1 19 5 32 . 30 72 3 Melee . | . . . . . . . . . Projectile 16 | . 1 . 5 . . 1 9 . AOE 146 | . . 19 . 32 . 29 63 3 Terrain Rammed . | . . . . . . . . . Walls Destroyed . | . . . . . . . . . Machines Disabled . | . . . . . . . . . Actions | -11 -10 -10 -9 -9 -9 -8 -8 -8 --------- Run | Scr Mat Min Mat Min Exi Min Mat Gar Total 2216 | 58 248 118 590 43 198 234 549 178 Wait 24 | . 3 . 6 . . 4 5 6 Move 1754 | 42 200 83 473 35 198 202 408 113 Hop . | . . . . . . . . . Pick Up 43 | 7 10 . 15 . . 1 7 3 Fast Attach 18 | 3 1 . 8 . . . 4 2 Attach 27 | 4 . 6 6 . . . 3 8 Detach 12 | . 1 4 4 . . . . 3 Swap 78 | . 6 4 16 3 . 6 35 8 Drop 39 | . 6 . 12 . . 1 13 7 Fire 189 | 2 17 18 46 2 . 12 65 27 Melee . | . . . . . . . . . Ram . | . . . . . . . . . Kick . | . . . . . . . . . Crush 32 | . 4 3 4 3 . 8 9 1 Escape Stasis . | . . . . . . . . . Rewire . | . . . . . . . . . Trap . | . . . . . . . . . Miscellaneous . | . . . . . . . . . Route ------- -11/Scrapyard -10/Materials -10/Mines -9/Materials (discovered 4 exits: *Mat x2 / [*Min x2]) -9/Mines (discovered 2 exits: *Mat / [*Exi]) -9/Exiles (discovered 2 exits: [*Min x2]) -8/Mines -8/Materials -8/Garrison History --------- Turn | Location | Event 6 | -11/Scrapyard | Discovered new exit (range 16) 70 | -11/Scrapyard | Entered Materials 316 | -10/Materials | Build established: Mutant 446 | -10/Materials | Discovered new exit (range 8) 475 | -10/Materials | Entered Mines 556 | -10/Mines | Assembled infested the area 568 | -10/Mines | Assisted by bots powering up and referring to "LRC-V3" 642 | -10/Mines | Discovered new exit (range 12) 645 | -10/Mines | Destroyed 8 combat bots 645 | -10/Mines | Lost 5 parts (1p2n2w) 674 | -10/Mines | Entered Materials 674 | -9/Materials | Evolved 2 slots: Propulsion x1, Utility x1 859 | -9/Materials | Discovered new exit (range 6) 1009 | -9/Materials | Discovered new exit (range 5) 1161 | -9/Materials | Repaired EMP Blaster? 1297 | -9/Materials | Central database locked down 1417 | -9/Materials | Discovered new exit (range 3) 1511 | -9/Materials | Discovered new exit (range 9) 1646 | -9/Materials | Entered Mines 1666 | -9/Mines | Discovered new exit (range 8) 1708 | -9/Mines | Deemed a non-threat by the Exiles lab entrance 1709 | -9/Mines | Discovered new exit (range 5) 1716 | -9/Mines | Entered Exiles 1716 | -9/Exiles | Found Exiles lab abandoned 1741 | -9/Exiles | Discovered new exit (range 15) 2021 | -9/Exiles | Discovered new exit (range 10) 2033 | -9/Exiles | Entered Mines 2402 | -8/Mines | Discovered new exit (range 9) 2415 | -8/Mines | Entered Materials 2415 | -8/Materials | Evolved 2 slots: Utility x2 2816 | -8/Materials | Destroyed 7 combat bots 3347 | -8/Materials | Identified exit to Garrison 3349 | -8/Materials | Entered Garrison 3388 | -8/Garrison | Triggered checkpoint 3396 | -8/Garrison | Triggered checkpoint 3511 | -8/Garrison | Spotted B-75 Beast 3511 | -8/Garrison | Spotted B-75 Beast 3548 | -8/Garrison | Triggered checkpoint 3586 | -8/Garrison | Core integrity fell below 50% 3598 | -8/Garrison | Core integrity fell below 20% 3625 | -8/Garrison | Lost 9 parts (1p4n2u2w) 3626 | -8/Garrison | Destroyed by B-75 Beast with Heavy Machine Gun Last Messages --------------- 03591_ Lgt. Treads blasted off. 03593_ Acquired Lgt. Treads. 03594_ Lgt. Treads destroyed. 03594_ Adv. Heat Sink destroyed. 03594_ Lgt. Treads destroyed. 03594_ Hvy. Ion Engine destroyed. 03596_ Dropped Adv. Beam Cannon. 03596_ Dropped EMP Blaster. 03599_ Dropped Lrg. Storage Unit. 03600_ Acquired 4 matter. 03606_ System corrupted: IFF burst signal emitted. 03606_ Dropped Hcp. Matter Pod. 03606_ Dropped Enh. Autogun. 03607_ Extracted 30 matter. 03608_ Extracted 10 matter. 03608_ Acquired Hcp. Matter Pod. 03611_ Acquired Enh. Autogun. 03612_ Acquired 1 matter. 03615_ Critical hit (Burn: +37). 03624_ Dropped System Shield. Map ----- +----------------------------------------------------+ | ????????????????????????# ^######### ##""""## # | | ????????????????????????# ^ ^ | | ????????????????????????# | | ????????????????????????# | | ????????????????????????########## % # #??? | | ?????????????????????????????????### # ## | | ?????????????????????????????????# | | ?????????????????????????????????# | | ?????????????????????????????????# | | ?????????????????????????????????# | | ?????????????????????????????????### ## ## | | ???????????????????????????????????# % ## ## | | ???????????????????????????????????" | | ???????????????????????????????????# | | ???????????????????????????????????# | | ???????????????????????????????????# ##""""##### | | ???????????????????????????????????# #?????????? | | ???????????????????????????????????# #?????????? | | ???????????????????????????????????# #?????????? | | ???????????????????????????????????# %#?????????? | | ???????????????????????????????????# #?????????? | | ???????????????????????????????????#] #?????????? | | ???????????#########################Y #?????????? | | ?????????? % YBB%#?????????? | | ?????????? gg BB #?????????? | | ?????????? @ g #?????????? | | ?????????????????### #####! #######"###?????????? | | ??????????????????????????# #?????# #???????????? | | ??????????????????????????# "?????# #???????????? | | ??????????????????????????# "????? #???????????? | | ??????????????????????????# "?????###???????????? | | ??????????????????????????# #???????????????????? | | ??????????????????????????# #???????????????????? | | ??????????????????????????# #???????????????????? | | ??????????????????????????# #???????????????????? | | ??????????????????????????# #???????????????????? | | ??????????????????????????# ???????????????????? | | ??????????????????????????# #???????????????????? | | ??????????????????????????# #???????????????????? | | ??????????????????????????? ????????????????????? | | ??????????????????????????? ????????????????????? | | ??????????????????????????? ????????????????????? | | ?????????????????????????????????????????????????? | | ?????????????????????????????????????????????????? | | ?????????????????????????????????????????????????? | | ?????????????????????????????????????????????????? | | ?????????????????????????????????????????????????? | | ?????????????????????????????????????????????????? | | ?????????????????????????????????????????????????? | | ?????????????????????????????????????????????????? | +----------------------------------------------------+ Best States ------------- Heat Dissipation 64 Energy Generation 14 Energy Capacity 280 Matter Stores 500 Matter Capacity 500 Sight Range 16 Terrain Scan Range 16 Terrain Scan Density 110 Armor Coverage 225 Evasion (%) 50 Recoil Reduction 3 Item Schematics ----------------- None Robot Schematics ------------------ None Fabricated ------------ Nothing Alien Tech Used ----------------- None Achievements -------------- None Challenges ------------ None Game ------ Seed GreatGaussCycler Manual? 0 Play Time 00:40:02 Cumulative 577.2 hours Start 2022.04.07 @ 12:54:33 End 2022.04.07 @ 13:33:09 Sessions 1 Manual Loads 0 Difficulty Rogue Special Mode None Game No. 283 Rogue 156 Adventurer 125 Explorer 2 Win Type - Total 53 Types 46/3/2/0/1/0/0/0/1 Lore% 71 Gallery% 85 Achievement% 68 Wizard Run 0 Options --------- ASCII 0 Keyboard 1 Movement Numpad Keybinds 0 Fullscreen 1 Font 36/TerminusFine Map View 76x50 Tactical HUD 1 Map Filters NONE Filters NONE Steam 1 RUN: ed85cd8b-26ea-4867-81b8-ea283165abb1